fUST/lending_fUST_20240713
["ID","MTS","AMOUNT","RATE_DAILY","PERIOD"]
[331944368,1720883236800,-500.0,0.00024657,2]
[331944369,1720883236821,-500.0,0.00024657,2]
[331944370,1720883236846,-510.29201685,0.00024657,2]
[331944371,1720883236868,-500.0,0.00024657,2]
[331944372,1720883236889,-219.43456981,0.00024657,2]
[331944373,1720883236911,-500.0,0.00024657,2]
[331944374,1720883236932,-500.0,0.00024657,2]
[331944375,1720883236954,-500.0,0.00024657,2]
[331944376,1720883236974,-500.0,0.00024657,2]
[331944377,1720883236996,-500.0,0.00024657,2]
[331944378,1720883237016,-500.0,0.00024657,2]
[331944379,1720883237036,-500.0,0.00024657,2]
[331944380,1720883237056,-500.0,0.00024657,2]
[331944381,1720883237081,-500.0,0.00024657,2]
[331944382,1720883237102,-618.31,0.00024657,2]
[331944384,1720883237123,-500.0,0.00024657,2]
[331944386,1720883237143,-500.0,0.00024657,2]
[331944388,1720883237164,-500.0,0.00024657,2]
[331944389,1720883237184,-500.0,0.00024657,2]
[331944390,1720883237206,-500.0,0.00024657,2]
[331944391,1720883237227,-500.0,0.00024657,2]
[331944392,1720883237247,-500.0,0.00024657,2]
[331944393,1720883237267,-500.0,0.00024657,2]
[331944394,1720883237290,-500.0,0.00024657,2]
[331944395,1720883237312,-500.0,0.00024657,2]
[331944396,1720883237341,-500.0,0.00024657,2]
[331944397,1720883237363,-632.9,0.00024657,2]
[331944398,1720883237384,-500.0,0.00024657,2]
[331944399,1720883237407,-500.0,0.00024657,2]
[331944400,1720883237429,-500.0,0.00024657,2]
[331944401,1720883237450,-500.0,0.00024657,2]
[331944402,1720883237471,-500.0,0.00024657,2]
[331944403,1720883237493,-163.02869698,0.00024657,2]
[331944404,1720883237514,-500.0,0.00024657,2]
[331944405,1720883237535,-500.0,0.00024657,2]
[331944406,1720883237556,-500.0,0.00024657,2]
[331944407,1720883237577,-500.0,0.00024657,2]
[331944408,1720883237598,-500.0,0.00024657,2]
[331944409,1720883237620,-500.0,0.00024657,2]
[331944410,1720883237640,-500.0,0.00024657,2]
[331944411,1720883237662,-500.0,0.00024657,2]
[331944412,1720883237684,-500.0,0.00024657,2]
[331944413,1720883237706,-500.0,0.00024657,2]
[331944414,1720883237729,-7484.04,0.00024657,2]
[331944415,1720883237752,-500.0,0.00024657,2]
[331944416,1720883237774,-500.0,0.00024657,2]
[331944417,1720883238201,-500.0,0.00024657,2]
[331944418,1720883238223,-500.0,0.00024657,2]
[331944419,1720883238247,-500.0,0.00024657,2]
[331944420,1720883238271,-500.0,0.00024657,2]
[331944421,1720883238294,-500.0,0.00024657,2]
[331944422,1720883238316,-500.0,0.00024657,2]
[331944423,1720883238343,-1201.13,0.00024657,2]
[331944424,1720883238364,-500.0,0.00024657,2]
[331944425,1720883238388,-500.0,0.00024657,2]
[331944426,1720883238413,-500.0,0.00024657,2]
[331944427,1720883238435,-500.0,0.00024657,2]
[331944428,1720883238456,-500.0,0.00024657,2]
[331944429,1720883238477,-500.0,0.00024657,2]
[331944430,1720883238500,-500.0,0.00024657,2]
[331944431,1720883238523,-500.0,0.00024657,2]
[331944432,1720883238548,-500.0,0.00024657,2]
[331944433,1720883238572,-433.74,0.00024657,2]
[331944434,1720883238595,-500.0,0.00024657,2]
[331944435,1720883238616,-500.0,0.00024657,2]
[331944436,1720883238639,-500.0,0.00024657,2]
[331944437,1720883238661,-500.0,0.00024657,2]
[331944438,1720883238684,-500.0,0.00024657,2]
[331944439,1720883238707,-500.0,0.00024657,2]
[331944440,1720883238731,-500.0,0.00024657,2]
[331944441,1720883238753,-500.0,0.00024657,2]
[331944442,1720883238776,-597.16461742,0.00024657,2]
[331944443,1720883238797,-500.0,0.00024657,2]
[331944444,1720883238819,-500.0,0.00024657,2]
[331944445,1720883238843,-500.0,0.00024657,2]
[331944446,1720883238864,-577.84,0.00024657,2]
[331944447,1720883238887,-500.0,0.00024657,2]
[331944448,1720883238913,-500.0,0.00024657,2]
[331944449,1720883238935,-500.0,0.00024657,2]
[331944450,1720883238956,-500.0,0.00024657,2]
[331944451,1720883238978,-601.2692364,0.00024657,2]
[331944452,1720883239001,-500.0,0.00024657,2]
[331944453,1720883239023,-420.0,0.00024869,2]
[331944454,1720883239046,-302.27461649,0.000249,2]
[331944455,1720883239067,-6627.29,0.00024911,3]
[331944456,1720883239179,-13040.3121236,0.00024921,3]
[331944457,1720883239205,-615.89652705,0.00024931,2]
[331944458,1720883239228,-500.0,0.00024931,2]
[331944459,1720883239251,-500.0,0.00024931,2]
[331944460,1720883239273,-500.0,0.00024931,2]
[331944461,1720883239295,-500.0,0.00024931,2]
[331944462,1720883239317,-500.0,0.00024931,2]
[331944463,1720883239345,-500.0,0.00024931,2]
[331944464,1720883239368,-187.00366007,0.00024931,2]
[331944465,1720883239391,-500.0,0.00024931,2]
[331944466,1720883239414,-411.36,0.00024931,2]
[331944467,1720883239435,-500.0,0.00024931,2]
[331944468,1720883239457,-500.0,0.00024931,2]
[331944469,1720883239478,-409.24956619,0.00024931,2]
[331944470,1720883239499,-500.0,0.00024931,2]
[331944471,1720883239520,-500.0,0.00024931,2]
[331944472,1720883239540,-500.0,0.00024931,2]
[331944473,1720883239561,-500.0,0.00024931,2]
[331944474,1720883239582,-1000.0,0.00024931,5]
[331944475,1720883239605,-561.53,0.00024931,2]
[331944476,1720883239627,-500.0,0.00024931,2]
[331944477,1720883239651,-500.0,0.00024931,2]
[331944478,1720883239674,-500.0,0.00024931,2]
[331944479,1720883239698,-500.0,0.00024931,2]
[331944480,1720883239721,-500.0,0.00024931,2]
[331944481,1720883239743,-500.0,0.00024931,2]
[331944482,1720883239766,-500.0,0.00024931,2]
[331944483,1720883239788,-395.53496956,0.00024931,2]
[331944484,1720883239811,-607.70050573,0.00024931,2]
[331944485,1720883239834,-562.51004883,0.00024931,2]
[331944486,1720883239856,-500.0,0.00024931,2]
[331944487,1720883239879,-334.77180992,0.00024931,2]
[331944488,1720883239901,-500.0,0.00024931,2]
[331944489,1720883239924,-500.0,0.00024931,2]
[331944490,1720883239948,-258.88605255,0.00024931,2]
[331944491,1720883239972,-500.0,0.00024931,2]
[331944492,1720883239996,-308.83,0.00024931,2]
[331944493,1720883240018,-7484.04,0.00024931,2]
[331944494,1720883240040,-500.0,0.00024931,2]
[331944495,1720883240061,-500.0,0.00024931,2]
[331944496,1720883240085,-420.85678218,0.00024931,2]
[331944497,1720883240107,-500.0,0.00024931,2]
[331944498,1720883240128,-450.76278161,0.00024931,2]
[331944499,1720883240151,-1201.13,0.00024931,2]
[331944500,1720883240171,-500.0,0.00024931,2]
[331944501,1720883240193,-500.0,0.00024931,2]
[331944502,1720883240214,-500.0,0.00024931,2]
[331944503,1720883240234,-500.0,0.00024931,2]
[331944504,1720883240254,-500.0,0.00024931,2]
[331944505,1720883240275,-500.0,0.00024931,2]
[331944506,1720883240297,-339.71798854,0.00024931,2]
[331944507,1720883240318,-500.0,0.00024931,2]
[331944508,1720883240344,-500.0,0.00024931,2]
[331944509,1720883240367,-500.0,0.00024931,2]
[331944510,1720883240388,-500.0,0.00024931,2]
[331944511,1720883240415,-500.0,0.00024931,2]
[331944512,1720883240439,-381.1800309,0.00024931,2]
[331944513,1720883240462,-500.0,0.00024931,2]
[331944514,1720883240483,-210.50193047,0.00024931,2]
[331944515,1720883240503,-500.0,0.00024931,2]
[331944516,1720883240524,-3055.08655598,0.00025078,2]
[331944517,1720883240546,-13040.3121236,0.00025195,3]
[331944518,1720883240566,-30000.0,0.00025204,2]
[331944519,1720883240587,-507.98739794,0.00025205,2]
[331944520,1720883240609,-500.0,0.00025205,2]
[331944521,1720883240630,-500.0,0.00025205,2]
[331944522,1720883240650,-3693.23,0.00025205,2]
[331944523,1720883240672,-502.88,0.00025205,2]
[331944524,1720883240695,-500.0,0.00025205,2]
[331944525,1720883240722,-617.07619474,0.00025205,2]
[331944526,1720883240745,-302.5,0.00025205,2]
[331944527,1720883240769,-764.10820365,0.00025205,5]
[331944528,1720883240791,-500.0,0.00025205,2]
[331944529,1720883240815,-500.0,0.00025205,2]
[331944530,1720883240837,-589.13,0.00025205,2]
[331944531,1720883240862,-500.0,0.00025205,2]
[331944532,1720883240883,-500.0,0.00025205,2]
[331944533,1720883240906,-500.0,0.00025205,2]
[331944534,1720883240929,-500.0,0.00025205,2]
[331944535,1720883240951,-500.0,0.00025205,2]
[331944536,1720883240975,-500.0,0.00025205,2]
[331944537,1720883240997,-500.0,0.00025205,2]
[331944538,1720883241020,-7484.04,0.00025205,2]
[331944539,1720883241044,-500.0,0.00025205,2]
[331944540,1720883241066,-1201.13,0.00025205,2]
[331944541,1720883241089,-516.12653375,0.00025205,2]
[331944542,1720883241112,-500.0,0.00025205,2]
[331944543,1720883241136,-500.0,0.00025205,2]
[331944544,1720883241158,-500.0,0.00025205,2]
[331944545,1720883241181,-173.13312301,0.00025205,2]
[331944546,1720883241203,-500.0,0.00025205,2]
[331944547,1720883241226,-500.0,0.00025205,2]
[331944548,1720883241248,-500.0,0.00025205,2]
[331944549,1720883241271,-5203.64131631,0.00025239,2]
[331944550,1720883241294,-342.57269896,0.00025274,2]
[331944551,1720883241319,-2000.0,0.00025379,2]
[331944552,1720883241344,-356.1653261,0.00025471,2]
[331944553,1720883241367,-366.66303915,0.00025479,2]
[331944554,1720883241390,-500.0,0.00025479,2]
[331944555,1720883241412,-3693.23,0.00025479,2]
[331944556,1720883241434,-198.03,0.00025479,2]
[331944557,1720883241455,-500.0,0.00025479,2]
[331944558,1720883241477,-153.32,0.00025479,2]
[331944559,1720883241501,-500.0,0.00025479,2]
[331944560,1720883241524,-500.0,0.00025479,2]
[331944561,1720883241547,-500.0,0.00025479,2]
[331944562,1720883241571,-500.0,0.00025479,2]
[331944563,1720883241593,-500.0,0.00025479,2]
[331944564,1720883241614,-500.0,0.00025479,2]
[331944565,1720883241635,-500.0,0.00025479,2]
[331944566,1720883241656,-7484.04,0.00025479,2]
[331944567,1720883241677,-500.0,0.00025479,2]
[331944568,1720883241699,-1201.13,0.00025479,2]
[331944569,1720883241723,-500.0,0.00025479,2]
[331944570,1720883241744,-596.45065235,0.00025479,2]
[331944571,1720883241766,-500.0,0.00025479,2]
[331944572,1720883241787,-500.0,0.00025479,2]
[331944573,1720883241808,-500.0,0.00025479,2]
[331944574,1720883241832,-534.06,0.00025479,2]
[331944575,1720883241852,-356.1653261,0.00025498,2]
[331944576,1720883241872,-150.112233,0.000255,6]
[331944577,1720883241894,-3055.08655598,0.00025599,2]
[331944578,1720883242001,-5203.64131631,0.00025667,2]
[331944579,1720883242026,-13040.3121236,0.00025743,3]
[331944580,1720883242047,-500.0,0.00025753,2]
[331944581,1720883242068,-3693.23,0.00025753,2]
[331944582,1720883242092,-235.08,0.00025753,2]
[331944583,1720883242114,-319.23371502,0.00025753,2]
[331944584,1720883242136,-500.0,0.00025753,2]
[331944585,1720883242160,-500.0,0.00025753,2]
[331944586,1720883242182,-500.0,0.00025753,2]
[331944587,1720883242204,-500.0,0.00025753,2]
[331944588,1720883242225,-500.0,0.00025753,2]
[331944589,1720883242249,-7484.04,0.00025753,2]
[331944590,1720883242273,-1201.13,0.00025753,2]
[331944591,1720883242295,-500.0,0.00025753,2]
[331944592,1720883242316,-579.09,0.00025753,2]
[331944593,1720883242346,-500.0,0.00025753,2]
[331944594,1720883242367,-500.0,0.00025753,2]
[331944595,1720883242388,-356.1653261,0.00025757,2]
[331944596,1720883242410,-5203.64131632,0.0002588,2]
[331944597,1720883242432,-159.57839054,0.00025969,2]
[331944598,1720883242456,-340.22,0.00026017,3]
[331944599,1720883242480,-500.0,0.00026027,2]
[331944600,1720883242504,-3693.23,0.00026027,2]
[331944601,1720883242525,-500.0,0.00026027,2]
[331944602,1720883242547,-500.0,0.00026027,2]
[331944603,1720883242571,-500.0,0.00026027,2]
[331944604,1720883242593,-500.0,0.00026027,2]
[331944605,1720883242614,-253.9,0.00026027,2]
[331944606,1720883242637,-7484.04,0.00026027,2]
[331944607,1720883242658,-1201.13,0.00026027,2]
[331944608,1720883242680,-500.0,0.00026027,2]
[331944609,1720883242703,-500.0,0.00026027,2]
[331944610,1720883242726,-500.0,0.00026027,2]
[331944611,1720883242748,-3055.08655598,0.00026119,2]
[331944612,1720883242769,-161.1981478,0.00026235,2]
[331944613,1720883242792,-13040.3121236,0.00026291,3]
[331944614,1720883242813,-500.0,0.00026301,2]
[331944615,1720883242834,-3693.23,0.00026301,2]
[331944616,1720883242856,-500.0,0.00026301,2]
[331944617,1720883242878,-332.22,0.00026301,2]
[331944618,1720883242899,-214.43,0.00026301,2]
[331944619,1720883242920,-503.00346228,0.00026301,2]
[331944620,1720883242942,-7484.04,0.00026301,2]
[331944621,1720883242967,-1201.13,0.00026301,2]
[331944622,1720883242988,-346.45,0.00026301,2]
[331944623,1720883243010,-500.0,0.00026301,2]
[331944624,1720883243033,-500.0,0.00026301,2]
[331944625,1720883243055,-161.1981478,0.00026327,2]
[331944626,1720883243081,-152.20405271,0.00026384,2]
[331944627,1720883243101,-154.59445058,0.00026425,2]
[331944628,1720883243123,-152.20405271,0.00026473,2]
[331944629,1720883243144,-150.112233,0.000265,10]
[331944630,1720883243166,-3000.0,0.000265,2]
[331944631,1720883243186,-152.20405271,0.00026501,2]
[331944632,1720883243212,-356.1653261,0.00026504,2]
[331944633,1720883243234,-3000.0,0.0002651,2]
[331944634,1720883243258,-3000.0,0.0002652,2]
[331944635,1720883243281,-151.0,0.0002652,7]
[331944636,1720883243303,-263.772153,0.0002652,7]
[331944637,1720883243329,-3000.0,0.0002653,2]
[331944638,1720883243352,-3000.0,0.0002654,2]
[331944639,1720883243376,-3000.0,0.0002655,2]
[331944640,1720883243401,-3000.0,0.0002656,2]
[331944641,1720883243422,-3000.0,0.0002657,2]
[331944642,1720883243443,-500.0,0.00026575,2]
[331944643,1720883243465,-3693.23,0.00026575,2]
[331944644,1720883243487,-500.0,0.00026575,2]
[331944645,1720883243509,-7484.04,0.00026575,2]
[331944646,1720883243530,-1201.13,0.00026575,2]
[331944647,1720883243552,-500.0,0.00026575,2]
[331944648,1720883243575,-500.0,0.00026575,2]
[331944649,1720883243597,-3000.0,0.0002658,2]
[331944650,1720883243619,-151.0,0.0002658,7]
[331944651,1720883243642,-3000.0,0.0002659,2]
[331944652,1720883243666,-3000.0,0.000266,2]
[331944653,1720883243689,-3000.0,0.0002661,2]
[331944654,1720883243714,-3000.0,0.0002662,2]
[331944655,1720883243738,-154.59445058,0.00026626,2]
[331944656,1720883243760,-150.42453828,0.00026628,2]
[331944657,1720883243782,-3000.0,0.0002663,2]
[331944658,1720883243809,-9308.82635334,0.0002664,5]
[331944659,1720883243833,-3055.08655598,0.0002664,2]
[331944660,1720883243855,-3000.0,0.0002664,2]
[331944661,1720883243877,-159.57839054,0.00026648,2]
[331944662,1720883243899,-3000.0,0.0002665,2]
[331944663,1720883243921,-3000.0,0.0002666,2]
[331944664,1720883243943,-3000.0,0.0002667,2]
[331944665,1720883243966,-3000.0,0.0002668,2]
[331944666,1720883243989,-3000.0,0.0002669,2]
[331944667,1720883244011,-315.0,0.000267,7]
[331944668,1720883244032,-315.0,0.000267,7]
[331944669,1720883244054,-151.0,0.000267,7]
[331944670,1720883244075,-151.0,0.000267,7]
[331944671,1720883244097,-3000.0,0.000267,2]
[331944672,1720883244119,-160.429889,0.000267,7]
[331944673,1720883244140,-1000.0,0.0002671,2]
[331944674,1720883244162,-225.9011813,0.0002671,2]
[331944675,1720883244183,-189.39290951,0.0002671,2]
[331944676,1720883244204,-764.43027422,0.0002671,2]
[331944677,1720883244225,-3692.00165038,0.0002671,2]
[331944678,1720883244247,-3000.0,0.0002671,2]
[331944679,1720883244268,-356.1653261,0.00026718,2]
[331944680,1720883244290,-3000.0,0.0002672,2]
[331944681,1720883244313,-3000.0,0.0002673,2]
[331944682,1720883244340,-151.0,0.0002674,2]
[331944683,1720883244362,-151.0,0.0002674,7]
[331944684,1720883244388,-3000.0,0.0002674,2]
[331944685,1720883244411,-167.21919922,0.00026745,2]
[331944686,1720883244434,-3000.0,0.0002675,2]
[331944687,1720883244456,-151.0,0.0002675,7]
[331944688,1720883244480,-151.0,0.0002675,7]
[331944689,1720883244502,-3000.0,0.0002676,2]
[331944690,1720883244524,-3000.0,0.0002677,2]
[331944691,1720883244547,-5991.788106,0.0002678,2]
[331944692,1720883244568,-152.20405271,0.00026788,2]
[331944693,1720883244678,-159.57839054,0.00026813,2]
[331944694,1720883244703,-13040.3121236,0.00026839,3]
[331944695,1720883244725,-500.0,0.00026849,2]
[331944696,1720883244747,-3693.23,0.00026849,2]
[331944697,1720883244771,-500.0,0.00026849,2]
[331944698,1720883244797,-7484.04,0.00026849,2]
[331944699,1720883244820,-1201.13,0.00026849,2]
[331944700,1720883244844,-500.0,0.00026849,2]
[331944701,1720883244866,-500.0,0.00026849,2]
[331944702,1720883244887,-159.57839054,0.0002686,2]
[331944703,1720883244911,-152.20405271,0.00026932,2]
[331944704,1720883244936,-153.79107762,0.00026956,2]
[331944705,1720883244957,-150.0,0.00026966,2]
[331944706,1720883244979,-506.994,0.00026966,2]
[331944707,1720883244999,-1406.0,0.00026966,2]
[331944708,1720883245023,-150.79426912,0.00026996,2]
[331944709,1720883245044,-3093.569999,0.00027,21]
[331944710,1720883245066,-161.1981478,0.0002711,2]
[331944711,1720883245087,-210.54,0.00027123,2]
[331944712,1720883245108,-3693.23,0.00027123,2]
[331944713,1720883245132,-500.0,0.00027123,2]
[331944714,1720883245154,-7484.04,0.00027123,2]
[331944715,1720883245176,-1201.13,0.00027123,2]
[331944716,1720883245197,-248.79,0.00027123,2]
[331944717,1720883245220,-500.0,0.00027123,2]
[331944718,1720883245242,-612.111179,0.00027195,2]
[331944719,1720883245264,-152.20405271,0.00027225,2]
[331944720,1720883245285,-150.112233,0.000273,9]
[331944721,1720883245305,-159.57839054,0.00027302,2]
[331944722,1720883245331,-153.79107762,0.00027321,2]
[331944723,1720883245353,-152.20405271,0.00027345,2]
[331944724,1720883245374,-153.79107762,0.00027394,2]
[331944725,1720883245395,-3693.23,0.00027397,2]
[331944726,1720883245419,-500.0,0.00027397,2]
[331944727,1720883245441,-7484.04,0.00027397,2]
[331944728,1720883245462,-1201.13,0.00027397,2]
[331944729,1720883245483,-500.0,0.00027397,2]
[331944730,1720883245505,-241.74936296,0.00027397,2]
[331944731,1720883245526,-500.0,0.00027397,2]
[331944732,1720883245547,-175.48417072,0.000274,2]
[331944733,1720883245568,-152.20405271,0.00027411,2]
[331944734,1720883245590,-152.20405271,0.00027413,2]
[331944735,1720883245611,-161.1981478,0.00027462,2]
[331944736,1720883245631,-151.0,0.0002749,7]
[331944737,1720883245654,-13040.3121236,0.0002749,3]
[331944738,1720883245675,-43690.95914845,0.000275,2]
[331944739,1720883245696,-151.0,0.000275,2]
[331944740,1720883245719,-151.0,0.000275,7]
[331944741,1720883245741,-315.0,0.000275,7]
[331944742,1720883245762,-315.0,0.000275,7]
[331944743,1720883245783,-211.634667,0.000275,7]
[331944744,1720883245810,-151.0,0.000275,7]
[331944745,1720883245831,-152.20405271,0.00027511,2]
[331944746,1720883245853,-1111.12150085,0.00027547,2]
[331944747,1720883245877,-13040.3121236,0.00027661,3]
[331944748,1720883245899,-3693.23,0.00027671,2]
[331944749,1720883245921,-500.0,0.00027671,2]
[331944750,1720883245944,-7484.04,0.00027671,2]
[331944751,1720883245968,-1201.13,0.00027671,2]
[331944752,1720883245990,-500.0,0.00027671,2]
[331944753,1720883246013,-154.59445061,0.00027834,2]
[331944754,1720883246037,-161.1981478,0.00027873,2]
[331944755,1720883246059,-161.19814784,0.00027875,2]
[331944756,1720883246083,-150.112233,0.000279,9]
[331944757,1720883246108,-3693.23,0.00027945,2]
[331944758,1720883246130,-500.0,0.00027945,2]
[331944759,1720883246151,-1938.52753284,0.00027945,2]
[331944760,1720883246262,-2064.66920113,0.00027945,2]
[331944761,1720883246290,-3480.84326603,0.00027945,2]
[331944762,1720883246312,-1201.13,0.00027945,2]
[331944763,1720883246337,-500.0,0.00027945,2]
[331944764,1720883246359,-6109.04793397,0.0002799,2]
[331944765,1720883246411,-1145.36865518,0.00023771,2]
[331944766,1720883246458,-1854.63134482,0.00023771,2]
[331944767,1720883246480,-1000.0,0.00024647,2]
[331944768,1720883246504,-17139.68034516,0.0002799,2]
[331944769,1720883246525,-526.33889339,0.00028,2]
[331944770,1720883246546,-515.85814946,0.00028,2]
[331944771,1720883246568,-157.95591486,0.00028046,2]
[331944772,1720883246589,-157.95591486,0.00028163,2]
[331944773,1720883246609,-159.57839054,0.00028188,2]
[331944774,1720883246632,-13040.3121236,0.00028209,3]
[331944775,1720883246653,-3693.23,0.00028219,2]
[331944776,1720883246675,-500.0,0.00028219,2]
[331944777,1720883246697,-7484.04,0.00028219,2]
[331944778,1720883246722,-1201.13,0.00028219,2]
[331944779,1720883246746,-500.0,0.00028219,2]
[331944780,1720883246766,-150.42453829,0.00028284,2]
[331944781,1720883246786,-159.57839059,0.00028294,2]
[331944782,1720883246809,-152.20405271,0.00028355,2]
[331944783,1720883246832,-157.95591486,0.00028364,2]
[331944784,1720883246854,-152.20405271,0.00028439,2]
[331944785,1720883246875,-152.20405271,0.0002847,2]
[331944786,1720883246898,-3693.23,0.00028493,2]
[331944787,1720883246921,-500.0,0.00028493,2]
[331944788,1720883246941,-7484.04,0.00028493,2]
[331944789,1720883246963,-1201.13,0.00028493,2]
[331944790,1720883246984,-500.0,0.00028493,2]
[331944791,1720883247005,-152.20405276,0.00028726,2]
[331944792,1720883247027,-151.0,0.0002876,2]
[331944793,1720883247049,-315.0,0.0002876,7]
[331944794,1720883247154,-315.0,0.0002876,7]
[331944795,1720883247176,-151.0,0.0002876,7]
[331944796,1720883247199,-26080.6242472,0.0002876,3]
[331944797,1720883247219,-3693.23,0.00028767,2]
[331944798,1720883247240,-513.97186112,0.00028767,2]
[331944799,1720883247266,-7484.04,0.00028767,2]
[331944800,1720883247288,-1201.13,0.00028767,2]
[331944801,1720883247310,-500.0,0.00028767,2]
[331944802,1720883247333,-317.30214599,0.00028769,2]
[331944803,1720883247354,-88140.5352045,0.0002877,2]
[331944804,1720883247376,-788.97831,0.0002894,2]
[331944805,1720883247397,-3693.23,0.00029041,2]
[331944806,1720883247421,-151.0,0.00029041,2]
[331944807,1720883247441,-315.0,0.00029041,7]
[331944808,1720883247460,-315.0,0.00029041,7]
[331944809,1720883247481,-151.0,0.00029041,7]
[331944810,1720883247502,-7484.04,0.00029041,2]
[331944811,1720883247523,-1201.13,0.00029041,2]
[331944812,1720883247544,-500.0,0.00029041,2]
[331944813,1720883247566,-13040.3121236,0.00029278,3]
[331944814,1720883247587,-4203.299,0.00029288,2]
[331944815,1720883247608,-3693.23,0.00029315,2]
[331944816,1720883247629,-7484.04,0.00029315,2]
[331944817,1720883247651,-1201.13,0.00029315,2]
[331944818,1720883247672,-500.0,0.00029315,2]
[331944819,1720883247693,-197.7597611,0.000294,2]
[331944820,1720883247716,-342.57269896,0.00029554,2]
[331944821,1720883247737,-3693.23,0.00029589,2]
[331944822,1720883247759,-7484.04,0.00029589,2]
[331944823,1720883247781,-1201.13,0.00029589,2]
[331944824,1720883247802,-500.0,0.00029589,2]
[331944825,1720883247822,-3693.23,0.00029863,2]
[331944826,1720883247846,-7484.04,0.00029863,2]
[331944827,1720883247866,-1201.13,0.00029863,2]
[331944828,1720883247887,-339.72,0.00029863,2]
[331944829,1720883247908,-2284.96844025,0.00029875,4]
[331944830,1720883247927,-19974.14702024,0.00029875,2]
[331944831,1720883247948,-459.54316149,0.00029875,2]
[331944832,1720883247970,-395.3059992,0.00029875,2]
[331944833,1720883247990,-992.88413342,0.00029875,2]
[331944834,1720883248013,-154.60575532,0.00029875,2]
[331944835,1720883248034,-713.49426017,0.00029875,17]
[331944836,1720883248056,-154.60575532,0.00029875,2]
[331944837,1720883248077,-175.73860548,0.00029875,2]
[331944838,1720883248102,-13040.3121236,0.0002999,4]
[331944839,1720883248124,-284.70994421,0.0003,3]
[331944840,1720883248145,-5614.25337699,0.0003,4]
[331944841,1720883248166,-154.59033561,0.0003,4]
[331944842,1720883248188,-154.59033561,0.0003,4]
[331944843,1720883248209,-643.93924923,0.0003,4]
[331944844,1720883248229,-907.52129878,0.0003,30]
[331944845,1720883248251,-471.89162154,0.0003,4]
[331944846,1720883248270,-500.3802031,0.0003,2]
[331944847,1720883248290,-24959.0,0.0003,3]
[331944848,1720883248311,-1042.93434263,0.0003,2]
[331944849,1720883248335,-239.0,0.0003,2]
[331944850,1720883248355,-3693.23,0.00030136,2]
[331944851,1720883248378,-315.0,0.00030136,7]
[331944852,1720883248398,-315.0,0.00030136,7]
[331944853,1720883248421,-194.483678,0.00030136,7]
[331944854,1720883248443,-7484.04,0.00030136,2]
[331944855,1720883248464,-1201.13,0.00030136,2]
[331944856,1720883248488,-7077.48126602,0.00030252,4]
[331944903,1720883371464,3121.21,0.00019,2]
[331944939,1720883431984,-153.0,0.00023926,2]
[331944940,1720883431993,-500.0,0.00024657,2]
[331944941,1720883432003,-417.54070808,0.00024657,2]
[331945017,1720883438221,-82.45929192,0.00024657,2]
[331945018,1720883438235,-500.0,0.00024657,2]
[331945019,1720883438246,-500.0,0.00024657,2]
[331945020,1720883438256,-500.0,0.00024657,2]
[331945021,1720883438267,-500.0,0.00024657,2]
[331945022,1720883438280,-500.0,0.00024657,2]
[331945023,1720883438291,-500.0,0.00024657,2]
[331945024,1720883438304,-500.0,0.00024657,2]
[331945025,1720883438316,-500.0,0.00024657,2]
[331945026,1720883438328,-500.0,0.00024657,2]